Workbook

Sheet Changes
A1: Changes
A2: Date | B2: Report | C2: Column/Row/Line | D2: Change
A3: 2017-03-10 | B3: Supplemental | C3: E50 | D3: Changed formula from "=E17+E12" to "=E17-E12"
A4: 2017-03-10 | B4: Supplemental | C4: B17 | D4: Deleted "Surplus/Fund Balance"; Added "Net Change"

Sheet BCR Report
A1: %,LACTUALS,S2YEAR | D1: %,QBOR_BCR_LEDGER_NVS,CA.POSTED_TOTAL_AMT,S2YEAR | E1: %,LBCRADJ,UPOSTED_TOTAL_AMT,S2YEAR
B2: Balance Sheet | C2: See “Instructions and Query for the Balance Sheet Section”
H3: ="As of Date: " &ASD -> As of Date: 2016-06-30
B4: Revenues | C4: See “Instructions and Query for the Rev and Exp Section” | H4: ="Report ID: " &RID -> Report ID: BCRPT
B5: Expenditures | H5: ="Layout Name: " &LYN -> Layout Name: BUDGET_COMPLIANCE
H6: ="Operator: " &OPR -> Operator: JBFREEMAN
B7: ="Fund Balance July 1, " & (TEXT(ASD,"YYYY") - 1) -> Fund Balance July 1, 2015 | C7: ="See " & "“Instructions and Queries for the fund balance July 1, " & (TEXT(ASD,"YYYY") - 1) & "” section" -> See “Instructions and Queries for the fund balance July 1, 2015” section | H7: ="Run Date: "&TEXT(NvsEndTime, "mmmm dd, yyyy") -> Run Date: March 10, 2017
B9: ="Adjustments and Fund Balance June 30, "& TEXT(ASD, "YYYY") -> Adjustments and Fund Balance June 30, 2016 | C9: ="See " & "“Instuctions and Query for Budget Basis Adjustments and Fund Balance June 30, " & TEXT(ASD, "YYYY") & "” section" -> See “Instuctions and Query for Budget Basis Adjustments and Fund Balance June 30, 2016” section
C11: Do Not Type in Red Area or in Cells with Formulas
C13: Manual Entry Required
B16: Kennesaw State University
B17: ="Budget to Actuals Report - FY " & TEXT(ASD, "YYYY") -> Budget to Actuals Report - FY 2016
D18: A | E18: B | F18: C
D19: ACTUALS and DETAIL_EN Ledgers | E19: BCRADJ Ledger
E20: Budget Basis Adjustments
D21: ="June 30, " & TEXT(ASD, "YYYY") -> June 30, 2016 | F21: TOTAL | H21: Mapping (For Column A) | J21: Formula Criteria Details
B22: BALANCE SHEET section of worksheet:
B24: ASSETS
A25: %,FACCOUNT,TBTA_ACCOUNTS,NCASH,FFUND_CODE,TREPORT_FUNDS,NBTA_FUNDS | B25: BS1 | C25: Cash and Cash Equivalents | D25: 49053295.76 | E25: 0 | F25: =D25+E25 -> 49053295.76 | H25: Acct 11xxxx (Excluding 1198xx), 158xxx
A26: %,FACCOUNT,TBTA_ACCOUNTS,NSHORTTERM INVESTMENT,FFUND_CODE,TREPORT_FUNDS,NBTA_FUNDS | B26: BS2 | C26: Investments | D26: 90842.88 | E26: 0 | F26: =D26+E26 -> 90842.88 | H26: Acct 1198xx, 15xxxx (Excluding 158xxx)
B27: BS3 | C27: Accounts Receivable
A28: %,FACCOUNT,TBTA_ACCOUNTS,NACCTS REC - STATE,FFUND_CODE,TREPORT_FUNDS,NBTA_FUNDS | B28: BS4 | C28: State Appropriation | D28: 0 | E28: 0 | F28: =D28+E28 -> 0 | H28: Acct 123xxx
A29: %,FACCOUNT,TBTA_ACCOUNTS,NACCOUNTS REC - FED,FFUND_CODE,TREPORT_FUNDS,NBTA_FUNDS | B29: BS5 | C29: Federal Financial Assistance | D29: 2576536.49 | E29: 0 | F29: 2576536.49 | H29: Acct 124xxx
A30: %,FACCOUNT,TBTA_ACCOUNTS,NACCTS REC - OTHER,FFUND_CODE,TREPORT_FUNDS,NBTA_FUNDS | B30: BS6 | C30: Other | D30: 4374512.28 | E30: 3024097.34 | F30: 7398609.62 | H30: Acct 12xxxx (Excluding 123xxx, 124xxx, 126xxx)
B31: BS7 | C31: Margin Allocation | F31: 0
A32: %,FACCOUNT,TBTA_ACCOUNTS,NPREPAID,FFUND_CODE,TREPORT_FUNDS,NBTA_FUNDS | B32: BS8 | C32: Prepaid Expenditures | D32: 348284.44 | E32: 0 | F32: 348284.44 | H32: Acct 13xxxx
A33: %,FACCOUNT,TBTA_ACCOUNTS,NINVENTORY,FFUND_CODE,TREPORT_FUNDS,NBTA_FUNDS | B33: BS9 | C33: Inventories | D33: 26680.48 | E33: 0 | F33: 26680.48 | H33: Acct 14xxxx
A34: %,FACCOUNT,TBTA_ACCOUNTS,N"OTHER ASSETS",N"CAPITAL ASSETS",FFUND_CODE,TREPORT_FUNDS,NBTA_FUNDS | B34: BS10 | C34: Other Assets | D34: 28327.8 | E34: 0 | F34: 28327.8 | H34: Acct 126xxx | J34: Acct 16xxxx
B36: BS11 | C36: TOTAL ASSETS | D36: =SUM(D24:D35) -> 56498480.13 | E36: =SUM(E24:E35) -> 3024097.34 | F36: =D36+E36 -> 59522577.47
C38: LIABILITIES AND FUND BALANCE
C40: Liabilities:
B41: BS12 | C41: Cash Overdraft | F41: =D41+E41 -> 0 | H41: Acct 11xxxx (Excluding 1198xx), 158xxx IF THE TOTAL AMOUNT FOR THIS LINE IS NEGATIVE
A42: %,FACCOUNT,TBTA_ACCOUNTS,NCONTRACTS PAYABLE,FFUND_CODE,TREPORT_FUNDS,NBTA_FUNDS | B42: BS13 | C42: Contracts Payable | D42: 0 | E42: 0 | F42: 0 | H42: Acct 2119xx
B43: BS14 | C43: Grants Payable | F43: 0 | H43: Do Not Use - Contact Claire Arnold at claire.arnold@usg.edu if you have a balance to report on this line. Note: Include Restricted Fund 20000 payables on Accounts Payable or Accrued Payroll lines.
A44: %,FACCOUNT,TBTA_ACCOUNTS,NSALARIES PAYABLE,FFUND_CODE,TREPORT_FUNDS,NBTA_FUNDS | B44: BS15 | C44: Accrued Payroll | D44: -883234.6 | E44: 0 | F44: -883234.6 | H44: Acct 2121xx
B45: BS16 | C45: Payroll Withholdings | F45: 0 | H45: Do Not Use - Contact Claire Arnold at claire.arnold@usg.edu if you have a balance to report on this line.
A46: %,FACCOUNT,TBTA_ACCOUNTS,NACCOUNTS PAYABLE,FFUND_CODE,TREPORT_FUNDS,NBTA_FUNDS | B46: BS17 | C46: Accounts Payable | D46: -1011239.41 | E46: 0 | F46: -1011239.41 | H46: Acct 211xxx (Excluding 2119xx), 2122xx, 213xxx, 214xxx, 215xxx, 218xxx, 2198xx, 2199xx, 221xxx-228xxx, 231xxx-235xxx
A47: %,FACCOUNT,V381100,FLEDGER,VENCUMB,FFUND_CODE,TREPORT_FUNDS,NBTA_FUNDS_WO_SR | B47: BS18 | C47: Encumbrance Payable | D47: -26872998.02 | E47: 0 | F47: -26872998.02 | H47: Acct 381100
B48: BS19 | C48: Benefits Payable | F48: 0 | H48: USO Only
A49: %,FACCOUNT,TBTA_ACCOUNTS,NDEFERRED REVENUE,FFUND_CODE,TREPORT_FUNDS,NBTA_FUNDS | B49: BS20 | C49: Deferred Revenue | D49: -12682322.08 | E49: 0 | F49: -12682322.08 | H49: Acct 216xxx, 217xxx, 2913xx, 2914xx
A50: %,FACCOUNT,TBTA_ACCOUNTS,NDEPOSITS FOR OTHERS,FFUND_CODE,TREPORT_FUNDS,NBTA_FUNDS | B50: BS21 | C50: Funds Held for Others | D50: 0 | E50: 0 | F50: 0 | H50: Acct 24xxxx, 25xxxx
A51: %,FACCOUNT,TBTA_ACCOUNTS,NOTHER LIABILITIES,FFUND_CODE,TREPORT_FUNDS,NBTA_FUNDS | B51: BS22 | C51: Other Liabilities | D51: -128000 | E51: 0 | F51: -128000 | H51: Acct 219xxx (Excluding 2199xx), 2911xx, 2912xx
B53: BS23 | C53: Total Liabilities | D53: =SUM(D40:D52) -> -41577794.11 | E53: =SUM(E40:E52) -> 0 | F53: =D53+E53 -> -41577794.11
C55: Fund Balances:
B57: BS24 | C57: Reserved
B58: BS25 | C58: Capital Outlay | F58: =F830 -> 0
B59: BS26 | C59: Departmental Sales and Services | F59: =F831 -> -7064707.68
B60: BS27 | C60: Indirect Cost Recoveries | F60: =F832 -> -2145716.79
B61: BS28 | C61: Technology Fees | F61: -848087.96
B62: BS29 | C62: Restricted Funds | F62: -284972.4
B63: BS30 | C63: Uncollectible Accounts Receivable | F63: 0
B64: BS31 | C64: Inventories | F64: 0
B65: BS32 | C65: Carry-Over "Per OPB" | F65: 0
B66: BS33 | C66: Early Retirement Program | F66: 0
B67: BS34 | C67: Tuition Carry Forward | F67: =F839 -> 0
B68: BS35 | C68: Undesignated
B69: BS36 | C69: Surplus
B70: BS37 | C70: Regular | F70: =F840 -> -7601301.54
B71: BS38 | C71: Tobacco Settlement Funds
B73: BS39 | C73: Total Fund Balances | D73: =SUM(D55:D72) -> 0 | E73: =SUM(E55:E72) -> 0 | F73: =SUM(F55:F72) -> -17944786.37
B75: BS40 | C75: TOTAL LIABILITIES AND FUND BALANCES | D75: =D73+D53 -> -41577794.11 | E75: =E73+E53 -> 0 | F75: =F73+F53 -> -59522580.48
B78: REVENUES, EXPENDITURES AND CHANGES IN FUND BALANCE section of worksheet:
C80: Teaching-Revenue
B82: 1 | C82: General Funds (excluding PSI's)
A83: %,FACCOUNT,TBTA_ACCOUNTS,NTUITION,NSURPLUS_RETURN,FFUND_CODE,V10500 | B83: 2 | C83: Tuition Revenues | D83: -168476006 | E83: 5968256.22 | F83: =D83+E83 -> -162507749.8 | H83: Fund 10500 - Acct 401xxx-402xxx, 480100, 409998. NOTE: Fund 10500 should not have any other revenue accounts other than Tuition Accts 401xxx-402xxx and 409998.
A84: %,FACCOUNT,TBTA_ACCOUNTS,NALL REV ACCTS,FFUND_CODE,V16000 | B84: 3 | C84: Technology Fees | D84: -4124894.72 | E84: 0 | F84: -4124894.72 | H84: Fund 16000 - Acct 4xxxxx
A85: %,FACCOUNT,TBTA_ACCOUNTS,NALL REV ACCTS,FFUND_CODE,V15000 | B85: 4 | C85: Indirect Cost Recoveries | D85: -551584.58 | E85: 0 | F85: -551584.58 | H85: Fund 15000 - Acct 4xxxxx
A86: %,FACCOUNT,TBTA_ACCOUNTS,NFINES AND FORFEITS,FFUND_CODE,V10600 | B86: 5a | C86: Other Revenue - Fines and forfeits | D86: -9319.73 | E86: 0 | F86: -9319.73 | H86: Fund 10600 Acct 442xxx
A87: %,FACCOUNT,TBTA_ACCOUNTS,NRENTS AND ROYALTIES,FFUND_CODE,V10600 | B87: 5b | C87: Other Revenue - Rents and Royalties | D87: -314326 | E87: 0 | F87: -314326 | H87: Fund 10600 - Acct 451xxx
A88: %,FACCOUNT,TBTA_ACCOUNTS,N"OTHER FEES",FFUND_CODE,V10600 | B88: 5c | C88: Other Revenue - Other fees (eg. Application) | D88: -25897350.93 | E88: 6898016.57 | F88: -18999334.36 | H88: Fund 10600 - Acct 403xxx-409xxx
A89: %,FACCOUNT,TBTA_ACCOUNTS,NINVESTMENT INCOME,FFUND_CODE,V10600 | B89: 5d | C89: Other Revenue - Interest and other investment income | D89: -113696.04 | E89: 113696.04 | F89: 0 | H89: Fund 10600 - Acct 481xxx, 486xxx, 487xxx, 488xxx, 489xxx, 490xxx, 4932xx, 495xxx
A90: %,FACCOUNT,TBTA_ACCOUNTS,NGIFTS,FFUND_CODE,V10600,FCLASS_FLD,TBTA_CLASS,NCAP_OUTLAY_OTHR_SOUR | B90: 5e | C90: Other Revenue - Gifts, donations and contributions | D90: -26250 | E90: 0 | F90: -26250 | H90: Fund 10600 - Acct 485xxx (excluding any amounts that are determined to be Capital Outlay)
A91: %,FACCOUNT,TBTA_ACCOUNTS,N"OTHER REVENUE",FFUND_CODE,V10000,V11810 | B91: 5f | C91: Other Revenue - Other State Appropriation | D91: 0 | E91: 0
A92: %,FACCOUNT,TBTA_ACCOUNTS,N"OTHER REVENUE",N"STATE APPROP",FFUND_CODE,V10600 | B92: 5g | C92: Other Revenue - Other General | D92: -1594183.03 | E92: 703551.44 | F92: -890631.59 | H92: Fund 10600 - Acct 41xxxx (excluding 414998), 441xxx, 449xxx, 452xxx, 47xxxx, 492xxx, 4931xx, 4933xx, 498998
A93: %,FACCOUNT,TBTA_ACCOUNTS,N"STATE APPROP",FFUND_CODE,V10000,FCLASS_FLD,TBTA_CLASS,NBTA_NON_SFI_RESEARC | B93: 7 | C93: State Appropriations-State Appropriations | D93: -115173690 | E93: -8684.94 | F93: -115182375 | H93: Fund 10000 - Acct 480xxx, 414998 (Excluding Class 12000, 13000, 17000, Public Service Institutes Revenue, Office of Minority Business Revenue, and any amounts budgeted as Capital Outlay which was recorded in Fund 10000). NOTE: State Appropriations MUST tie to the Final Budget amount on the website. | J93: Class 11xxx, 14xxx
B94: 8 | C94: Total General Funds | D94: =SUM(D80:D93) -> -316281301.1 | E94: =SUM(E80:E93) -> 13674835.33 | F94: =SUM(F80:F93) -> -302606465.7
C96: Departmental Sales and Services
A97: %,FACCOUNT,TBTA_ACCOUNTS,NALL REV ACCTS,FFUND_CODE,V14000 | B97: 9 | C97: DSS Revenues | D97: -14256574.11 | E97: 0 | F97: =D97+E97 -> -14256574.11 | H97: Fund 14000 - Acct 4xxxxx
B99: 9a | C99: Total General Funds and DSS Revenues | F99: =F94+F97 -> -316863039.9
C101: Restricted
A102: %,FACCOUNT,TBTA_ACCOUNTS,N"SPON FEDERAL REV",FFUND_CODE,V20000,FCLASS_FLD,TBTA_CLASS,NSPONSORED_FEDERAL | B102: 10a | C102: Restricted - Federal | D102: -57570809.4 | E102: 0 | F102: =D102+E102 -> -57570809.4 | H102: Fund 2xxxx - Acct 421xxx, 425998, 4721xx, 4911xx, and all other 4xxxxx accts related to Federal Projects (ie Interest Income); Exclude Class FSxxx | J102: Fund 20000, Class 411000-411199, 424xxx, 4721xx, 61xxx
A103: %,FACCOUNT,TBTA_ACCOUNTS,N"ALL REV ACCTS",FFUND_CODE,V20000,FCLASS_FLD,TBTA_CLASS,NSPONSORED_FED_STIM | B103: 10aa | C103: Restricted - Federal - Federal Stimulus | D103: 0 | E103: 0 | F103: 0 | H103: Fund 2xxxx, Class FSxxx | J103: Fund 20000, Acct 4xxxxx - Class FSxxx
A104: %,FACCOUNT,TBTA_ACCOUNTS,N"ALL REV ACCTS",FFUND_CODE,V20000,FCLASS_FLD,TBTA_CLASS,NSPONSORED_STATE | B104: 10b | C104: Restricted - State | D104: -1024813.66 | E104: 0 | F104: -1024813.66 | H104: Fund 2xxxx - Acct 422xxx, 4722xx, 4912xx, and all other 4xxxxx accts related to State Projects (ie. Interest Income) | J104: Fund 20000, Acct 4xxxxx - Class 62xxx
A105: %,FACCOUNT,TBTA_ACCOUNTS,N"ALL REV ACCTS",FFUND_CODE,V20000,FCLASS_FLD,TBTA_CLASS,NSPONSORED_LOCAL | B105: 10c | C105: Restricted - Local | D105: -22513.32 | E105: 0 | F105: -22513.32 | H105: Fund 2xxxx - Acct 423xxx, 4723xx, 4913xx, and all other 4xxxxx accts related to Local Projects (ie. Interest Income) | J105: Fund 20000, Acct 4xxxxx - Class 63xxx
A106: %,FACCOUNT,TBTA_ACCOUNTS,N"ALL REV ACCTS",FFUND_CODE,V20000,FCLASS_FLD,TBTA_CLASS,NSPONSORED_PRIVATE | B106: 10d | C106: Restricted - Private | D106: -4701606.75 | E106: 0 | F106: -4701606.75 | H106: Fund 2xxxx - Acct 424xxx, 4724xx, 4914xx, and all other 4xxxxx accts related to Private Projects (ie. Interest Income) | J106: Fund 20000, Acct 4xxxxx - Class 64xxx
A107: %,FACCOUNT,TBTA_ACCOUNTS,N"ALL REV ACCTS",FFUND_CODE,V20000,V21810,FCLASS_FLD,TBTA_CLASS,NSPONSORED_ENDOWMENTS | B107: 10e | C107: Restricted - Endowment | D107: -104438.11 | E107: 0 | F107: -104438.11 | H107: Fund 2xxxx - Fund 20000;Acct 424xxx, 4724xx, 4914xx, and all other 4xxxxx accts related to Private Projects (ie. Interest Income) - Class 65000 | J107: Fund 20000, Acct 4xxxxx - Class 65xxx
B108: 10e | C108: Total Restricted Revenue | D108: =SUM(D101:D107) -> -63424181.24 | E108: =SUM(E101:E107) -> 0 | F108: =SUM(F101:F107) -> -63424181.24
C110: Capital Outlay
A111: %,FACCOUNT,TBTA_ACCOUNTS,NSTATE APPROP,FFUND_CODE,TREPORT_FUNDS,NUNEXPENDED_PLANT | B111: 11a | C111: State Appropriations Fund 50000 | D111: 747.5 | E111: -747.5 | F111: =D111+E111 -> 0 | H111: Fund 50000 - Acct 480xxx, 414998
B112: 11b | C112: State Appropriations Fund 10000 | F112: 0 | H112: Fund 10000 - Institution specific analysis. Any amounts budgeted as Capital Outlay recorded in Fund 10000 (ie. Class 16xxx). | J112: Account 414998, 480xxx
H113: NOTE: State Appropriations MUST tie to the Final Budget amount on the website.
A114: %,FACCOUNT,TBTA_ACCOUNTS,NCAPITAL INCOME,FFUND_CODE,TREPORT_FUNDS,NUNEXPENDED_PLANT | B114: 12a | C114: Investment Income | D114: 0 | E114: -113696.04 | F114: -113696.04 | H114: Fund 50000 - Acct 486xxx, 487xxx, 488xxx, 489xxx, 490xxx, 495xxx
A115: %,FACCOUNT,TBTA_ACCOUNTS,NOTHER_STATE_GIFTS,NGIFTS,FFUND_CODE,TREPORT_FUNDS,NUNEXPENDED_PLANT | B115: 12b | C115: Bond funds (through GSFIC) Fund 50000 | D115: 0 | E115: 0 | F115: 0 | H115: Fund 50000 - Acct 485xxx. Institution specific analysis for amts budgeted as Bond (review Final Budget amounts on website) | J115: Acct 4229xx
A116: %,FACCOUNT,TBTA_ACCOUNTS,NOTHER_STATE_GIFTS,NGIFTS,FFUND_CODE,V10000 | B116: 12bb | C116: Bond funds (through GSFIC) Fund 10000 | D116: 0 | E116: 0 | F116: 0 | H116: Fund 10000 - Acct 485xxx. Institutions specific analysis for amounts determined to be Capital Outlay recorded in Fund 10000 | J116: Acct 4229xx
B117: 12c | C117: Other | F117: 0 | H117: Not mapped - Fund 50000 - Acct 485xxx. Institution specific analysis for amounts budgeted as Other (review Final Budget amounts on website)
A118: %,FACCOUNT,TBTA_ACCOUNTS,NGIFTS,FFUND_CODE,V10000,V10600,FCLASS_FLD,TBTA_CLASS,NCAPITAL_OUTLAY | B118: 12cc | D118: -5810105.22 | E118: 0 | F118: -5810105.22 | H118: Funds 10000 and 10600 - Acct 485xxx. Institutions specific analysis for amounts determined to be Capital Outlay recorded in Fund 1xxxx | J118: Class 16000 - 16500
A119: %,FACCOUNT,TBTA_ACCOUNTS,NTUITION,N"FINES AND FORFEITS",N"RENTS AND ROYALTIES",N"OTHER FEES",N"OTHER REVENUE",N"SPON FEDERAL REV",FFUND_CODE,TREPORT_FUNDS,NUNEXPENDED_PLANT | B119: 12ccc | D119: 0 | E119: -13671630.84 | F119: -13671630.84 | H119: Fund 50000 - All other 4xxxxx accts not already mapped on Capital Outlay lines | J119: All other 4xxxxx accts (401xxx - 402xxx, 409998, 442xxx, 403xxx - 409xxx, 41xxxx - 4148xx, 415xxx - 419xxx, 441xxx, 449xxx - 449x, 452xxx, 47xxxx, 492xxx, 4931xx, 4933xx, 498998, 4110xx - 4111xx, 421xxx, 424xxx, 425998, 4721xx, 4911xx, 451xxx)
B120: 15 | C120: Total Capital Outlay | D120: =SUM(D110:D119) -> -5809357.72 | E120: =SUM(E110:E119) -> -13786074.38 | F120: =SUM(F110:F119) -> -19595432.1
B122: 16 | C122: Total Teaching Revenue | D122: =D94+D97+D108+D120 -> -399771414.1 | E122: =E94+E97+E108+E120 -> -111239.05 | F122: =F94+F97+F108+F120 -> -399882653.2
C124: Public Service Institutes-Revenue
B125: 17 | C125: State Funds | F125: =D125+E125 -> 0 | H125: Institution specific analysis. NOTE: State Appropriations MUST tie to the Final Budget amount on the website.
B126: 18a | C126: Other Revenue - Rents and Royalties | F126: 0
B127: 18b | C127: Other Revenue - Other fees | F127: 0
B128: 18c | C128: Other Revenue - Interest and other investment income | F128: 0
B129: 18d | C129: Other Revenue - Gifts, donations and contributions | F129: 0
B130: 18e | C130: Other Revenue - Other | F130: 0
B131: 19 | C131: DSS Funds | F131: 0
B132: 20a | C132: Restricted - Federal | F132: 0
B133: 20b | C133: Restricted - State | F133: 0
B134: 20c | C134: Restricted - Local | F134: 0
B135: 20d | C135: Restricted - Private | F135: 0
B136: 21 | C136: Total Public Service Institutes Revenue | D136: =SUM(D124:D135) -> 0 | E136: =SUM(E124:E135) -> 0 | F136: =SUM(F124:F135) -> 0
B138: 22 | C138: Total Teaching Revenue | D138: =D122+D136 -> -399771414.1 | E138: =E122+E136 -> -111239.05 | F138: =F122+F136 -> -399882653.2
C140: Teaching-Expenditures
A141: %,FACCOUNT,TBTA_ACCOUNTS,NPER_SERVS,FFUND_CODE,V10500,FCLASS_FLD,TBTA_CLASS,NTUITION_OTHER_GEN | B141: 23 | C141: Tuition Fund - Personal Services | D141: 125185926.6 | E141: 0 | F141: =D141+E141 -> 125185926.6 | H141: Fund 10500 - Acct 5xxxxx (Excluding Class 12000 & 13000) | J141: Class 00000 - 11999, 14000 - 99999
A142: %,FACCOUNT,TBTA_ACCOUNTS,NNON_PER_SERVS,FFUND_CODE,V10500,FCLASS_FLD,TBTA_CLASS,NTUITION_OTHER_GEN | B142: 24 | C142: Tuition Fund - Operating Expenses | D142: 43487273.16 | E142: -5792758.09 | F142: 37694515.07 | H142: Fund 10500 - Acct 6xxxxx-9xxxxx (Excluding Class 12000 & 13000) | J142: Acct 6xxxxx-980xxx, 999950, 982xxx - 991500, Class 00000 - 11999, 14000 - 99999
A143: %,FACCOUNT,TBTA_ACCOUNTS,NPER_SERVS,FFUND_CODE,V10000,FCLASS_FLD,TBTA_CLASS,NTUITION_OTHER_GEN | B143: 25 | C143: State Appropriations - Personal Services | D143: 109289886.9 | E143: 0 | F143: 109289886.9 | H143: Fund 10000 - Acct 5xxxxx (Excluding Class 12000 & 13000) | J143: Class 00000 - 11999, 14000 - 99999
A144: %,FACCOUNT,TBTA_ACCOUNTS,NNON_PER_SERVS,FFUND_CODE,V10000,FCLASS_FLD,TBTA_CLASS,NTUITION_OTHER_GEN | B144: 26 | C144: State Appropriations - Operating Expenses | D144: 5848741.046 | E144: 43744.02 | F144: 5892485.066 | H144: Fund 10000 - Acct 6xxxxx-9xxxxx (Excluding Class 12000 & 13000) | J144: Acct 6xxxxx-980xxx, 999950, 982xxx - 991500, Class 00000 - 11999, 14000 - 99999
A145: %,FACCOUNT,TBTA_ACCOUNTS,NPER_SERVS,FFUND_CODE,V10600,FCLASS_FLD,TBTA_CLASS,NTUITION_OTHER_GEN | B145: 27 | C145: Other General Funds - Personal Services | D145: 5026403.51 | E145: 0 | F145: 5026403.51 | H145: Fund 10600 - Acct 5xxxxx (Excluding Class 12000 & 13000) | J145: Class 00000 - 11999, 14000 - 99999
A146: %,FACCOUNT,TBTA_ACCOUNTS,NNON_PER_SERVS,FFUND_CODE,V10600,FCLASS_FLD,TBTA_CLASS,NTUITION_OTHER_GEN | B146: 28 | C146: Other General Funds - Operating Expenses | D146: 28736420.07 | E146: -13217257.73 | F146: 15519162.34 | H146: Fund 10600 - Acct 6xxxxx-9xxxxx (Excluding Class 12000 & 13000) | J146: Acct 6xxxxx-980xxx, 999950, 982xxx - 991500, Class 00000 - 11999, 14000 - 99999
A147: %,FACCOUNT,TBTA_ACCOUNTS,NPER_SERVS,FFUND_CODE,V14000 | B147: 29 | C147: Departmental - Personal Services | D147: 4908827.67 | E147: 0 | F147: 4908827.67 | H147: Fund 14000 - Acct 5xxxxx
A148: %,FACCOUNT,TBTA_ACCOUNTS,NNON_PER_SERVS,FFUND_CODE,V14000 | B148: 30 | C148: Departmental -Operating Expenses | D148: 7518203.18 | E148: 0 | F148: 7518203.18 | H148: Fund 14000 - Acct 6xxxxx-9xxxxx | J148: Acct 6xxxxx - 980xxx, 999950, 982xxx - 991500
A149: %,FACCOUNT,TBTA_ACCOUNTS,NPER_SERVS,FFUND_CODE,V16000 | B149: 31 | C149: Technology Fee-Personal Services | D149: 2489448.05 | E149: 0 | F149: 2489448.05 | H149: Fund 16000 - Acct 5xxxxx
A150: %,FACCOUNT,TBTA_ACCOUNTS,NNON_PER_SERVS,FFUND_CODE,V16000 | B150: 32 | C150: Technology Fee-Operating Expenses | D150: 1809455.89 | E150: 0 | F150: 1809455.89 | H150: Fund 16000 - Acct 6xxxxx-9xxxxx | J150: Acct 6xxxxx - 980xxx, 999950, 982xxx - 991500
A151: %,FACCOUNT,TBTA_ACCOUNTS,NPER_SERVS,FFUND_CODE,V15000 | B151: 33 | C151: Indirect Cost Recoveries-Personal Services | D151: 263493.8 | E151: 0 | F151: 263493.8 | H151: Fund 15000 - Acct 5xxxxx
A152: %,FACCOUNT,TBTA_ACCOUNTS,NNON_PER_SERVS,FFUND_CODE,V15000 | B152: 34 | C152: Indirect Cost Recoveries-Operating Expenses | D152: 136379.7 | E152: 0 | F152: 136379.7 | H152: Fund 15000 - Acct 6xxxxx-9xxxxx | J152: Acct 6xxxxx - 980xxx, 999950, 982xxx - 991500
A153: %,FACCOUNT,TBTA_ACCOUNTS,NPER_SERVS,FFUND_CODE,V20000,FCLASS_FLD,TBTA_CLASS,NNON_STIMULUS_SPON | B153: 35 | C153: Restricted -Personal Services | D153: 5309714.8 | E153: 0 | F153: 5309714.8 | H153: Fund 2xxxx - Acct 5xxxxx, Exclude Class FSxxx | J153: Class 61xx-65xxx,
A154: %,FACCOUNT,TBTA_ACCOUNTS,NNON_PER_SERVS,FFUND_CODE,V20000,FCLASS_FLD,TBTA_CLASS,NNON_STIMULUS_SPON | B154: 36 | C154: Restricted-Operating Expenses | D154: 58142535.53 | E154: 0 | F154: 58142535.53 | H154: Fund 2xxxx - Acct 6xxxxx-9xxxxx, Exclude Class FSxxx | J154: Acct 6xxxxx - 980xxx, 999950, 982xxx - 991500, Class 61xx-65xxx,
A155: %,FACCOUNT,TBTA_ACCOUNTS,NPER_SERVS,FFUND_CODE,V20000,FCLASS_FLD,TBTA_CLASS,NSPONSORED_FED_STIM | B155: 35a | C155: Restricted - Federal Stimulus - Personal Services | D155: 0 | E155: 0 | F155: 0 | H155: Fund 2xxxx - Acct 5xxxxx, Class FSxxx
A156: %,FACCOUNT,TBTA_ACCOUNTS,NNON_PER_SERVS,FFUND_CODE,V20000,FCLASS_FLD,TBTA_CLASS,NSPONSORED_FED_STIM | B156: 36a | C156: Restricted - Federal Stimulus - Operating Expenses | D156: 0 | E156: 0 | F156: 0 | H156: Fund 2xxxx - Acct 6xxxxx-9xxxxx, Class FSxxx | J156: Acct 6xxxxx - 980xxx, 999950, 982xxx - 991500
A157: %,FACCOUNT,TBTA_ACCOUNTS,NPER_SERVS,NNON_PER_SERVS,FFUND_CODE,V50000 | B157: 37 | C157: Capital Outlay | D157: 0 | E157: 19595432.1 | F157: 19595432.1 | H157: Fund 50000 - Acct 5xxxxx-9xxxxx | J157: Acct 5xxxxx - 980xxx, 999950, 982xxx - 991500
F158: 0 | H158: Fund 10000 - Any amts determined to be Capital Outlay recorded in Fund 10000 (i.e Class 16xxx) | J158: Keep Merged with above, no formula all Institution specific analysis
B159: 38 | C159: Total Teaching Expenditures | D159: =SUM(D141:D158) -> 398152709.9 | E159: =SUM(E141:E158) -> 629160.3 | F159: =SUM(F141:F158) -> 398781870.2
C161: Public Service Institutes-Expenditures | H161: Institution specific analysis. NOTE: State Appropriations MUST tie to the Final Budget amount on the website.
B162: 39 | C162: State Funds | F162: =D162+E162 -> 0
B163: 40 | C163: Other Funds | F163: =D163+E163 -> 0
B164: 41 | C164: DSS Funds | F164: =D164+E164 -> 0
B165: 42 | C165: Restricted Funds | F165: =D165+E165 -> 0
B166: 43 | C166: Total Public Service Institutes Expenditure | D166: =SUM(D161:D165) -> 0 | E166: =SUM(E161:E165) -> 0 | F166: =SUM(F161:F165) -> 0
B168: 44 | C168: Total Teaching Expenditures | D168: =D159+D166 -> 398152709.9 | E168: =E159+E166 -> 629160.3 | F168: =F159+F166 -> 398781870.2
C170: Special Funding Initiatives Revenue
A171: %,FACCOUNT,TBTA_ACCOUNTS,NALL REV ACCTS,FFUND_CODE,V10000,FCLASS_FLD,TBTA_CLASS,NGEN_OPNS_SPEC_INIT | B171: 45 | C171: State Funds | D171: -540000 | E171: 0 | F171: =D171+E171 -> -540000 | H171: Fund 10000 - Class 13xxx Acct 4xxxxx
B172: 46 | C172: Tobacco Funds | F172: =D172+E172 -> 0
B173: 47 | C173: Total Special Funding Initiatives Revenue | D173: =SUM(D170:D172) -> -540000 | E173: =SUM(E170:E172) -> 0 | F173: =SUM(F170:F172) -> -540000
C175: Special Funding Initiatives Expenditure
A176: %,FACCOUNT,TBTA_ACCOUNTS,NNON_PER_SERVS,NPER_SERVS,FFUND_CODE,V10000,FCLASS_FLD,TBTA_CLASS,NGEN_OPNS_SPEC_INIT | B176: 48 | C176: State Funds | D176: 540000 | E176: 0 | F176: =D176+E176 -> 540000 | H176: Fund 10000 - Class 13xxx Acct 5xxxxx-9xxxxx | J176: Acct 5xxxxx - 980xxx, 999950, 982xxx - 991500
B177: 49 | C177: Tobacco Funds | F177: =D177+E177 -> 0 | H177: Georgia State University
B178: 50 | C178: Total Special Funding Initiatives Expenditure | D178: =SUM(D175:D177) -> 540000 | E178: =SUM(E175:E177) -> 0 | F178: =SUM(F175:F177) -> 540000
C180: Research Consortium Revenue
A181: %,FACCOUNT,TBTA_ACCOUNTS,NALL REV ACCTS,FFUND_CODE,V10000,FCLASS_FLD,TBTA_CLASS,NGEN_OPNS_RESEARCH | B181: 51 | C181: State Funds | D181: 0 | E181: 0 | F181: =D181+E181 -> 0 | H181: Fund 10000 - Class 12xxx Acct 4xxxxx
B182: 52 | C182: Tobacco Funds | F182: =D182+E182 -> 0 | H182: Georgia State University
B183: 53 | C183: Total Research Consortium Revenue | D183: =SUM(D180:D182) -> 0 | E183: =SUM(E180:E182) -> 0 | F183: =SUM(F180:F182) -> 0
C185: Research Consortium-Expenditure
A186: %,FACCOUNT,TBTA_ACCOUNTS,NNON_PER_SERVS,NPER_SERVS,FFUND_CODE,V10000,FCLASS_FLD,TBTA_CLASS,NGEN_OPNS_RESEARCH | B186: 54 | C186: State Funds | D186: 0 | E186: 0 | F186: =D186+E186 -> 0 | H186: Fund 10000 - Class 12xxx Acct 5xxxxx-9xxxxx | J186: Acct 5xxxxx - 980xxx, 999950, 982xxx - 991500
B187: 55 | C187: Tobacco Funds | F187: =D187+E187 -> 0 | H187: Georgia State University
B188: 56 | C188: Total Research Consortium Expenditure | D188: =SUM(D185:D187) -> 0 | E188: =SUM(E185:E187) -> 0 | F188: =SUM(F185:F187) -> 0
C190: Office of Minority Business - Revenue
B191: 57 | C191: State Funds | F191: =D191+E191 -> 0 | H191: Institution specific analysis. NOTE: State Appropriations MUST tie to the Final Budget amount on the website.
B192: 58 | C192: Indirect Cost Recoveries | F192: 0
B193: 59 | C193: Departmental Sales & Services | F193: 0
B194: 59a | C194: Restricted - Federal | F194: 0
B195: 59b | C195: Restricted - State | F195: 0
B196: 59c | C196: Restricted - Local | F196: 0
B197: 59d | C197: Restricted - Private | F197: 0
B198: 59e | C198: Other Revenue - Rents and Royalties | F198: 0
B199: 59f | C199: Other Revenue - Other fees | F199: 0
B200: 59g | C200: Other Revenue - Interest and other investment income | F200: 0
B201: 59h | C201: Other Revenue - Gifts, donations and contributions | F201: 0
B202: 59i | C202: Other Revenue - Other | F202: 0
B203: 59 | C203: Total Office of Minority Business Revenue | D203: =SUM(D190:D202) -> 0 | E203: =SUM(E190:E202) -> 0 | F203: =SUM(F190:F202) -> 0
H204: Institution specific analysis. NOTE: State Appropriations MUST tie to the Final Budget amount on the website.
C205: Office of Minority Business - Expenditures
B206: 60 | C206: State Funds | F206: =D206+E206 -> 0
B207: =+B206+1 -> 61 | C207: Indirect Cost Recoveries | F207: =D207+E207 -> 0
B208: =+B207+1 -> 62 | C208: Departmental Sales & Services | F208: =D208+E208 -> 0
B209: =+B208+1 -> 63 | C209: Restricted | F209: =D209+E209 -> 0
B210: =+B209+1 -> 64 | C210: Other | F210: =D210+E210 -> 0
B211: =+B210+1 -> 65 | C211: Total Office of Minority Business Expenditures | D211: =SUM(D205:D210) -> 0 | E211: =SUM(E205:E210) -> 0 | F211: =SUM(F205:F210) -> 0
C213: UGA - Forestry Research - Revenue | H213: UGA Only
B214: 66 | C214: State Funds | F214: =D214+E214 -> 0
B215: =+B214+1 -> 67 | C215: Indirect Cost Recoveries | F215: =D215+E215 -> 0
B216: =+B215+1 -> 68 | C216: Departmental Sales & Services | F216: 0
B217: 68a | C217: Sponsored Funds - Federal | F217: 0
B218: 68b | C218: Sponsored Funds - State | F218: 0
B219: 68c | C219: Sponsored Funds - Local | F219: 0
B220: 68d | C220: Sponsored Funds - Private | F220: 0
B221: 68e | C221: Sponsored Funds - Federal - Federal Stimulus
B222: 69a | C222: Other Revenue - Rents and Royalties | F222: 0
B223: 69b | C223: Other Revenue - Other fees | F223: 0
B224: 69c | C224: Other Revenue - Interest and other investment income | F224: 0
B225: 69d | C225: Other Revenue - Gifts, donations and contributions | F225: 0
B226: 69e | C226: Other Revenue - Other | F226: 0
B227: 70 | C227: Total UGA Forestry Research Revenue | D227: =SUM(D213:D226) -> 0 | E227: =SUM(E213:E226) -> 0 | F227: =SUM(F213:F226) -> 0
C229: UGA - Forestry Research- Expenditures
B230: 71 | C230: State Funds | F230: =D230+E230 -> 0
B231: =+B230+1 -> 72 | C231: Indirect Cost Recoveries | F231: =D231+E231 -> 0
B232: =+B231+1 -> 73 | C232: Departmental Sales & Services | F232: =D232+E232 -> 0
B233: =+B232+1 -> 74 | C233: Sponsored Funds | F233: =D233+E233 -> 0
B234: 74a | C234: Sponsored Funds - Federal - Federal Stimulus
B235: =+B233+1 -> 75 | C235: Other | F235: =D235+E235 -> 0
... 597 more rows

Sheet Supplemental
A2: Budgetary Compliance Report
A3: Supplemental
B6: Account Classification | C6: 10000 excluding SFI | D6: SFI | E6: 10500 | F6: 10600 | G6: 11810 | H6: 11920 | I6: 11930 & 11940 | J6: 50000 | K6: 14000 | L6: 15000 | M6: 16000 | N6: 20000
B8: Revenue | C8: ='BCR Report'!F93 -> -115182375 | D8: ='BCR Report'!F173 -> -540000 | E8: ='BCR Report'!F83 -> -162507749.8 | F8: =SUM('BCR Report'!F86:'BCR Report'!F92) -> -20239861.68 | G8: ='BCR Report'!F594 -> 0 | H8: ='BCR Report'!F565 -> 0 | I8: ='BCR Report'!F539 -> 0 | J8: ='BCR Report'!F120 -> -19595432.1 | K8: ='BCR Report'!F97 -> -14256574.11 | L8: ='BCR Report'!F85 -> -551584.58 | M8: ='BCR Report'!F84 -> -4124894.72 | N8: ='BCR Report'!F108 -> -63424181.24
B9: Expenditures | C9: =SUM('BCR Report'!F143:F144) -> 115182372 | D9: ='BCR Report'!F178 -> 540000 | E9: =SUM('BCR Report'!F141:F142) -> 162880441.6 | F9: =SUM('BCR Report'!F145:F146) -> 20545565.85 | G9: ='BCR Report'!F611 -> 0 | H9: ='BCR Report'!F585 -> 0 | I9: ='BCR Report'!F556 -> 0 | J9: =SUM('BCR Report'!F157) -> 19595432.1 | K9: =SUM('BCR Report'!F147:F148) -> 12427030.85 | L9: =SUM('BCR Report'!F151:F152) -> 399873.5 | M9: =SUM('BCR Report'!F149:F150) -> 4298903.94 | N9: =SUM('BCR Report'!F153:F156) -> 63452250.33
B10: Prior Year Payables/Expenditures | C10: ='BCR Report'!F748 -> -35062.08 | D10: ='BCR Report'!F749 -> 0 | E10: ='BCR Report'!F750 -> -124931.73 | F10: ='BCR Report'!F751 -> -22669.92 | G10: ='BCR Report'!F752 -> 0 | H10: ='BCR Report'!F753 -> 0 | I10: ='BCR Report'!F754 -> 0 | J10: ='BCR Report'!F755 -> 0 | K10: ='BCR Report'!F756 -> 0 | L10: ='BCR Report'!F757 -> 0 | M10: ='BCR Report'!F758 -> 0 | N10: ='BCR Report'!F759 -> 0
B11: Prior Year Receivables/Revenues | C11: ='BCR Report'!F761 -> 0 | D11: ='BCR Report'!F762 -> 0 | E11: ='BCR Report'!F763 -> 421423.04 | F11: ='BCR Report'!F764 -> 269812.23 | G11: ='BCR Report'!F765 -> 0 | H11: ='BCR Report'!F766 -> 0 | I11: ='BCR Report'!F767 -> 0 | J11: ='BCR Report'!F768 -> 0 | K11: ='BCR Report'!F769 -> 0 | L11: ='BCR Report'!F770 -> 0 | M11: ='BCR Report'!F771 -> 0 | N11: ='BCR Report'!F772 -> 0
B12: Return of PY Surplus | C12: ='BCR Report'!F775 -> 0 | D12: ='BCR Report'!F776 -> 0 | E12: ='BCR Report'!F777 -> 0 | F12: ='BCR Report'!F778 -> 20262.56 | G12: ='BCR Report'!F779 -> 0 | H12: ='BCR Report'!F780 -> 0 | I12: ='BCR Report'!F781 -> 0 | J12: ='BCR Report'!F782 -> 747.5
B13: Early Surplus return | C13: ='BCR Report'!$F784 -> 0 | D13: ='BCR Report'!$F785 -> 0 | E13: ='BCR Report'!$F786 -> 0 | F13: ='BCR Report'!$F787 -> 0 | G13: ='BCR Report'!$F788 -> 0 | H13: ='BCR Report'!$F789 -> 0 | I13: ='BCR Report'!$F790 -> 0 | J13: ='BCR Report'!$F791 -> 0
B14: Prior Year Reserved Fund Balance Included in Funds Available | C14: ='BCR Report'!F793 -> 0 | D14: ='BCR Report'!F794 -> 0 | E14: ='BCR Report'!F795 -> 0 | F14: ='BCR Report'!F796 -> 0 | G14: ='BCR Report'!F797 -> 0 | H14: ='BCR Report'!F798 -> 0 | I14: ='BCR Report'!F799 -> 0 | J14: ='BCR Report'!F800 -> 0
B15: Mandatory Transfers | C15: ='BCR Report'!F802 -> 0 | D15: ='BCR Report'!F803 -> 0 | E15: ='BCR Report'!F804 -> 0 | F15: ='BCR Report'!F805 -> 0 | G15: ='BCR Report'!F806 -> 0 | H15: ='BCR Report'!F807 -> 0 | I15: ='BCR Report'!F808 -> 0 | J15: ='BCR Report'!F809 -> 0 | K15: ='BCR Report'!F810 -> 0 | L15: ='BCR Report'!F811 -> 0 | M15: ='BCR Report'!F812 -> 0 | N15: ='BCR Report'!F813 -> 0
B16: Non-Mandatory Transfers | C16: ='BCR Report'!F815 -> 0 | D16: ='BCR Report'!F816 -> 0 | E16: ='BCR Report'!F817 -> 0 | F16: ='BCR Report'!F818 -> -723814 | G16: ='BCR Report'!F819 -> 0 | H16: ='BCR Report'!F820 -> 0 | I16: ='BCR Report'!F821 -> 0 | J16: ='BCR Report'!F822 -> 0 | K16: ='BCR Report'!F823 -> 0 | L16: ='BCR Report'!F824 -> 0 | M16: ='BCR Report'!F825 -> 0 | N16: ='BCR Report'!F826 -> 0
B17: Surplus/Fund Balance Net Change | C17: =SUM(C8:C16) -> -35065.074 | D17: 0 | E17: 669183.188 | F17: -150704.955 | G17: 0 | H17: 0 | I17: 0 | J17: 747.5 | K17: -1829543.26 | L17: -151711.08 | M17: 174009.22 | N17: 28069.09
B21: Adjustments to Reserves
B22: Uncollectibles
B23: Inventory
B24: Net changes to reserves | C24: =SUM(C22:C23) -> 0 | D24: 0 | E24: 0 | F24: 0 | G24: 0 | H24: 0 | I24: 0 | J24: 0 | K24: 0 | L24: 0 | M24: 0 | N24: 0
B26: Beginning Reserve Balances
B27: Inventories
B28: Uncollectibles
B30: Ending Reserve Balances | C30: =SUM(C24:C29) -> 0 | D30: 0 | E30: 0 | F30: 0 | G30: 0 | H30: 0 | I30: 0 | J30: 0 | K30: 0 | L30: 0 | M30: 0 | N30: 0
B33: Funds available for surplus or carryforward
B34: after reserve calculations | C34: =C17-C24 -> -35065.074 | D34: =D17-D24 -> 0 | E34: 669183.188 | F34: -150704.955 | G34: 0 | H34: 0 | I34: 0 | J34: 747.5 | K34: -1829543.26 | L34: -151711.08 | M34: 174009.22 | N34: 28069.09
B35: Less:PY Surplus & Tuition Carry-Forward or Plus: PY Reserve (for Funds 14000, 15000, 16000, 20000) | C35: =+'BCR Report'!F731 -> -8681.95 | E35: ='BCR Report'!F730+'BCR Report'!F732 -> -4707981.008 | F35: =+'BCR Report'!F733 -> -20262.551 | G35: ='BCR Report'!F734 -> 0 | H35: ='BCR Report'!F735 -> 0 | I35: =('BCR Report'!F736+'BCR Report'!F737) -> 0 | J35: =+'BCR Report'!F738 -> -747.5 | K35: ='BCR Report'!F722 -> -5235164.42 | L35: ='BCR Report'!F723 -> -1994005.71 | M35: ='BCR Report'!F724 -> -1022097.18 | N35: ='BCR Report'!F725 -> -313041.49
B37: Net Surplus/Carryforward/Fund Balance
B38: (Carryforward subject to 3% rule) | C38: =SUM(C34:C37) -> -43747.024 | D38: 0 | E38: -4038797.82 | F38: -170967.506 | G38: 0 | H38: 0 | I38: 0 | J38: 0 | K38: -7064707.68 | L38: -2145716.79 | M38: -848087.96 | N38: -284972.4
B39: Maximum reserve allowed | E39: =IF(E54>E38,E54,E38) -> -4038797.82
B40: Net Surplus/Fund Balance | C40: =SUM(C38:C39) -> -43747.024 | D40: 0 | E40: =+E38-E39 -> 0 | F40: -170967.506 | G40: 0 | H40: 0 | I40: 0 | J40: 0 | K40: -7064707.68 | L40: -2145716.79 | M40: -848087.96 | N40: -284972.4
B41: Non Mandatory transfer to cover deficit
B43: Net (Surplus) Deficit or Reserve excluding Tuition Carry-Over | C43: =SUM(C40:C42) -> -43747.024 | D43: 0 | E43: 0 | F43: -170967.506 | G43: 0 | H43: 0 | I43: 0 | J43: 0 | K43: -7064707.68 | L43: -2145716.79 | M43: -848087.96 | N43: -284972.4
B47: 10500 - Tuition Carry-Forward & Surplus Calculation
B48: Tuition Carry Forward Reserve
B49: Prior Year Tuition Carry Forward | E49: ='BCR Report'!F730 -> -4707981.008
B50: Current Year Surplus (net of PY surplus return) | E50: =E17-E12 -> 669183.188
B51: Inc (Dec) in Inv & Uncoll A/R) | E51: =-E24 -> 0
B52: Subtotal | E52: =SUM(E49:E51) -> -4038797.82
B54: Carry Forward Calculation (3%) | E54: =E8*0.03 -> -4875232.493
B55: Surplus | E55: =IF(E52<E54,E52-E54,0) -> 0
B56: Carry Forward | E56: =IF(E54>=E52,E54,E52) -> -4038797.82 | F56: Exception: Amount cannot be carried forward if there is a deficit on another budgetary fund
B59: Check for Surplus
B60: Unreserved from BCR Report Line 337, col F | C60: ='BCR Report'!F840 -> -7601301.54
B62: Surplus
B63: Fund 10000 (non SFI) | C63: =C43 -> -43747.024
B64: SFI | C64: =D43 -> 0
B65: Fund 10500 | C65: =E43 -> 0
B66: Fund 10600 | C66: =F43 -> -170967.506
B67: Fund 11810 | C67: =G43 -> 0
B68: Fund 11920 | C68: =H43 -> 0
B69: Fund 11930 & 11940 | C69: =I43 -> 0
B70: Fund 50000 | C70: =J43 -> 0
C71: =SUM(C63:C70) -> -214714.53
B73: Check, should be zero | C73: =C60-C71 -> -7386587.01
B75: Manual Entry Required
